Cogmind - Beta 15 *** ADVENTURER MODE // 2025.08.31 @ 14:25:34 Player: Knightshade Result: Self-destructed Performance ------------- Evolutions (2) 1000 Regions Visited (3) 600 Robots Destroyed (38) 190 Value Destroyed (1192) 1192 Prototype IDs (17) 340 Alien Tech Used (0) 0 Bonus (0) 0 TOTAL SCORE: 3322 Bonus ------- None Cogmind --------- Core Integrity 539/550 Matter 300/300 Energy 31/250 System Corruption 0% Temperature Cool (0) Movement Treading (160) Location -8/Materials Parts ------- > --- POWER (1+1) ------ Ion Engine > --- PROPULSION (2) --- Light Treads Light Treads > --- UTILITY (6) ------ ECM Suite Scrap Shield > --- WEAPON (2) ------- Powered Cannon > --- INVENTORY (5) ---- Power Bank Field Laser Plasma Cutter Multitool Makeshift Spear Peak State ------------ > --- POWER ------------ Ion Engine > --- PROPULSION ------- Light Treads Light Treads > --- UTILITY ---------- ECM Suite Scrap Shield > --- WEAPON ----------- Powered Cannon > --- INVENTORY -------- Power Bank Field Laser Plasma Cutter Multitool Makeshift Spear [Rating: 24] Favorites ----------- Power Ion Engine Engine Ion Engine Propulsion Light Treads Treads Light Treads Wheel Compact Wheel Utility Scrap Shield Device ECM Suite Storage Large Storage Unit Protection Scrap Shield Weapon Medium Laser Energy Gun Medium Laser Energy Cannon Powered Cannon Piercing Weapon Makeshift Spear Build | -11 -10 -10 -8 ------- Run | Yrd Mat Sub Mat Slots Evolved 4 | . . . 4 Power . | . . . . Propulsion . | . . . . Utility 4 | . . . 4 Weapon . | . . . . Parts Attached 21 | 6 8 7 . Power 3 | 1 2 . . Engine 3 | 1 2 . . Core . | . . . . Reactor . | . . . . Propulsion 5 | 2 3 . . Treads 4 | 2 2 . . Leg . | . . . . Wheel 1 | . 1 . . Hover . | . . . . Flight . | . . . . Utility 6 | 1 3 2 . Device 2 | . 2 . . Storage 2 | 1 1 . . Processor . | . . . . Hackware . | . . . . Protection 2 | . . 2 . Artifact . | . . . . Weapon 7 | 2 . 5 . Energy Gun 2 | 2 . . . Energy Cannon 4 | . . 4 . Ballistic Gun . | . . . . Ballistic Cannon . | . . . . Launcher . | . . . . Special Weapon . | . . . . Impact Weapon . | . . . . Slashing Weapon . | . . . . Piercing Weapon 1 | . . 1 . Special Melee Weapon . | . . . . Unidentified Prototypes . | . . . . Parts Lost 1 | . 1 . . Power . | . . . . Propulsion . | . . . . Utility 1 | . 1 . . Weapon . | . . . . Highest Loss Streak 1 | . 1 . . To Critical Strikes . | . . . . Average Backups 7 | 3 11 5 4 Power . | . 1 . . Propulsion 1 | 1 2 . . Utility 1 | . 2 1 1 Weapon 3 | 1 5 2 1 Tool/Special . | . . . . Unused Backups 12 | . . 8 4 Power . | . . . . Propulsion 2 | . . 2 . Utility 3 | . . 2 1 Weapon 5 | . . 4 1 Tool/Special 2 | . . . 2 Average Slot Usage (%) 76 | . 94 66 50 Engine 12 | . 14 12 8 Treads 25 | . 27 25 16 Device 4 | . 9 . 8 Storage 5 | . 14 . . Protection 7 | . . 12 8 Energy Gun 11 | . 28 . . Energy Cannon 8 | . . 14 8 Peak Build Rating 24 | 6 9 22 24 Average Rating 15 | 5 7 20 23 On Entrance 9 | . 6 9 22 Naked Turns . | . . . . Heaviest Build 34 | 12 31 34 34 Greatest Support 40 | 40 40 40 40 Greatest Overweight (x) 1 | 1 . . . Average Overweight (x) . | . . . . Largest Inventory Capacity 15 | 8 15 15 5 Average Capacity 8 | 7 13 5 5 Most Carried 15 | 5 15 14 5 Average Carried 7 | 3 11 5 4 Final Capacity 15 | 8 15 5 5 Final Carried 14 | 5 14 5 5 Class Distribution -------------------- 100% | Mutant Dominant Class ---------------- Mutant | -10/Materials Mutant | -10/Subcaves Mutant | -8/Materials Resources | -11 -10 -10 -8 ----------- Run | Yrd Mat Sub Mat Matter Collected 430 | 260 70 90 10 Remotely . | . . . . Salvage Created 1613 | 45 697 623 248 Parts 71 | 4 25 25 17 Haulers Intercepted 2 | . 2 . . Recyclers Shooed 1 | . 1 . . Parts Field Recycled . | . . . . Retrieved Matter . | . . . . Parts Self-Destructed . | . . . . Prevented . | . . . . Kills | -11 -10 -10 -8 ------- Run | Yrd Mat Sub Mat Combat Hostiles Destroyed 31 | . 14 12 5 Guns 14 | . 14 . . Cannons 10 | . . 6 4 Classes Destroyed 9 | 1 4 3 1 Tunneler 2 | 2 . . . Hauler 2 | . 2 . . Watcher 3 | . 2 . 1 Swarmer 4 | . 3 . 1 Grunt 13 | . 11 . 2 Sentry 2 | . . . 2 Artisan 2 | . . 2 . Cobbler 1 | . . 1 . Subdweller 12 | . . 12 . Best Kill Streak 4 | 2 4 3 3 Combat Bots Only 4 | . 4 3 2 Max Kills in Single Turn 1 | 1 1 1 1 Gunslinging . | . . . . Exploded . | . . . . Melee . | . . . . Uniques/NPCs Destroyed . | . . . . Combat | -11 -10 -10 -8 -------- Run | Yrd Mat Sub Mat Hostile Shots Fired 135 | . 69 39 27 Missed 33 | . 16 14 3 Hits 102 | . 53 25 24 Projectile 102 | . 53 25 24 AOE 1 | . . 1 . Critical Strikes 1 | . . . 1 Damage Taken 1228 | . 499 543 186 Core 198 | . 113 74 11 Absorbed by Shields . | . . . . Redirected to Shielding 8 | . . 8 . Ignored by Resistances 347 | . 153 134 60 Core Remaining (%) 62 | 100 . 25 . Volleys Fired 140 | 7 68 49 16 Largest 2 | 2 2 2 1 Hottest 112 | 100 100 112 40 Shots Fired 223 | 14 136 57 16 Gun 150 | 14 136 . . Cannon 73 | . . 57 16 Launcher . | . . . . Special . | . . . . Kinetic . | . . . . Thermal 207 | 14 136 41 16 Explosive . | . . . . Electromagnetic 16 | . . 16 . Robot Hit Streak 22 | 6 16 20 22 Robot Miss Streak 3 | 2 3 2 2 Penetration Max . | . . . . Secondary Targets . | . . . . Shots Hit Robots 176 | 11 110 42 13 Core Hits 49 | 3 34 8 4 Critical Kills 5 | . . 4 1 Critical Parts Destroyed . | . . . . Critical Strikes 19 | 1 13 4 1 Burn 14 | 1 13 . . Meltdown 5 | . . 4 1 Melee Attacks 1 | . . 1 . Impact . | . . . . Slashing . | . . . . Piercing 1 | . . 1 . Sneak Attacks . | . . . . Combat Hostiles . | . . . . Follow-up Attacks . | . . . . Damage Inflicted 3653 | 138 1400 1432 683 Guns 1538 | 138 1400 . . Cannons 2115 | . . 1432 683 Explosions . | . . . . Melee . | . . . . Ramming . | . . . . Kinetic . | . . . . Thermal 3408 | 138 1400 1187 683 Explosive . | . . . . Electromagnetic 245 | . . 245 . Impact . | . . . . Slashing . | . . . . Piercing . | . . . . Highest Corruption . | . . . . Average Corruption . | . . . . Corruption Purged . | . . . . Corruption Blocked . | . . . . Overload Shots . | . . . . Overflow Damage 102 | . . 69 33 Projectiles 102 | . . 69 33 Explosions . | . . . . Melee . | . . . . Knockbacks . | . . . . Impact . | . . . . Kinetic . | . . . . Secondary . | . . . . Self-Inflicted Damage . | . . . . Shots . | . . . . Rammed . | . . . . Targets Rammed . | . . . . Kicked . | . . . . Crushed . | . . . . Highest Temperature 255 | 255 234 6 23 Average Temperature 81 | 128 79 6 15 Received Heat Transfer 501 | . 342 78 81 Siege Activations . | . . . . Martial Activations . | . . . . Shielding Activations . | . . . . Robots Disrupted . | . . . . Combat Hostiles . | . . . . Robots Corrupted 2 | . . 2 . Combat Hostiles 2 | . . 2 . Parts Fried 6 | . . 6 . Impact Corruptions . | . . . . Robots Melted 6 | . 1 4 1 Combat Hostiles 5 | . . 4 1 Parts Melted 17 | 2 7 6 2 Heat Transferred 5587 | 481 5106 . . Parts Sabotaged . | . . . . Parts Stolen . | . . . . Parts Stripped . | . . . . Power Chain Reactions . | . . . . Alert | -11 -10 -10 -8 ------- Run | Yrd Mat Sub Mat Maximum Alert Level . | . . . . Low Security (%) 100 | 100 100 . 100 Level 1 . | . . . . Level 2 . | . . . . Level 3 . | . . . . Level 4 . | . . . . Level 5 . | . . . . High Security . | . . . . Max Security . | . . . . Peak Influence 156 | 5 156 . 54 Initial . | . . . . Average 30 | . 33 . 15 Influence Increases 699 | 10 545 . 144 Destroy 0b10 Robot/C 380 | . 280 . 100 Destroy 0b10 Robot/NC 35 | 10 20 . 5 Destroy Leader 110 | . 78 . 32 Successful Hack 66 | . 61 . 5 Select Force Hacks 60 | . 60 . . Destroy Structure 3 | . 1 . 2 Lose Combat Pursuer 45 | . 45 . . Influence Decreases 645 | 10 545 . 90 Time Decay 635 | 10 535 . 90 Lost Part 10 | . 10 . . Squads Dispatched 3 | . 3 . . Investigation 3 | . 3 . . Extermination . | . . . . Reinforcement . | . . . . Assault . | . . . . Garrison . | . . . . Intercept . | . . . . Searches Triggered . | . . . . Construction Impeded . | . . . . Haulers Reinforced . | . . . . Active Scanning Responses . | . . . . Cargo Convoy Interrupts . | . . . . Stealth | -11 -10 -10 -8 --------- Run | Yrd Mat Sub Mat Distress Signals 6 | . 1 . 5 Communications Jammed . | . . . . Distress Signals . | . . . . Times Spotted 59 | . 35 12 12 Peak Tracking Total 6 | . 4 3 6 Tactical Retreats 9 | . 7 . 2 Traps | -11 -10 -10 -8 ------- Run | Yrd Mat Sub Mat Traps Triggered 4 | . 2 2 . Indirectly . | . . . . Trap Hack Attempts . | . . . . Triggered . | . . . . Disarmed . | . . . . Reprogrammed . | . . . . Reused . | . . . . Traps Extracted . | . . . . Installed . | . . . . Triggered . | . . . . Machines | -11 -10 -10 -8 ---------- Run | Yrd Mat Sub Mat Machines Disabled 2 | . 1 1 . Max in Single Turn 1 | . 1 1 . Machines Repaired . | . . . . Machines Dismantled . | . . . . Machines Sabotaged . | . . . . Overloaded Fab Kills . | . . . . Hacking | -11 -10 -10 -8 --------- Run | Yrd Mat Sub Mat Machines Accessed 16 | . 10 4 2 Terminals 10 | . 8 . 2 Fabricators . | . . . . Repair Stations . | . . . . Recycling Units 2 | . 2 . . Scanalyzers . | . . . . Garrison Access . | . . . . Total Hacks 61 | . 37 15 9 Successful 49 | . 29 15 5 Failed 12 | . 8 . 4 Catastrophic 2 | . 1 . 1 Database Lockouts . | . . . . Manual 36 | . 28 . 8 Terminals 43 | . 34 . 9 Fabricators . | . . . . Repair Stations . | . . . . Recycling Units 3 | . 3 . . Scanalyzers . | . . . . Garrison Access . | . . . . Terminal Hacks 28 | . 12 15 1 Record 12 | . . 12 . Prototype ID Bank 9 | . 9 . . Open Door 1 | . . 1 . Locate Traps 1 | . 1 . . Hauler Manifests 1 | . 1 . . Registered Components 2 | . 1 . 1 Proto ID Catalog 1 | . . 1 . Release Object 1 | . . 1 . Fabricator Hacks . | . . . . Repair Station Hacks . | . . . . Recycling Unit Hacks 1 | . 1 . . Report Inventory 1 | . 1 . . Scanalyzer . | . . . . Garrison Access Hacks . | . . . . Unauthorized Hacks 20 | . 16 . 4 Terminals 18 | . 14 . 4 Botnet 8 | . 6 . 2 Skim 10 | . 8 . 2 Fabricators . | . . . . Repair Stations . | . . . . Recycling Units 2 | . 2 . . Tunnel 2 | . 2 . . Scanalyzers . | . . . . Garrison Access . | . . . . Data Cores Recovered . | . . . . Used . | . . . . Hacking Detections 10 | . 8 . 2 Full Trace Events 1 | . 1 . . Feedback Events . | . . . . Feedback Blocked . | . . . . Robot Schematics Acquired . | . . . . Robots Built . | . . . . Authchips . | . . . . Time . | . . . . Total Robot Build Rating . | . . . . Part Schematics Acquired . | . . . . Parts Built . | . . . . Authchips . | . . . . Time . | . . . . Total Part Build Rating . | . . . . Parts Repaired . | . . . . Time . | . . . . Parts Recycled . | . . . . Recycled Matter . | . . . . Retrieved Matter . | . . . . Retrieved Components . | . . . . Parts Scanalyzed . | . . . . Part Schematics Acquired . | . . . . Parts Damaged . | . . . . Bothacking | -11 -10 -10 -8 ------------ Run | Yrd Mat Sub Mat Used RIF Installer . | . . . . Robots Hacked . | . . . . Non-combat . | . . . . Combat . | . . . . Robot Hacks Applied . | . . . . Relay Couplers Released . | . . . . Fabnet Peak Effective % . | . . . . Robots Rewired . | . . . . Allies Hacked . | . . . . Hacks Repelled . | . . . . Allies | -11 -10 -10 -8 -------- Run | Yrd Mat Sub Mat Total Allies . | . . . . Largest Group . | . . . . Highest-Rated Group . | . . . . Highest-Rated Ally . | . . . . Total Orders . | . . . . Ally Attacks . | . . . . Total Damage . | . . . . Kills . | . . . . Allies Corrupted . | . . . . Allies Melted . | . . . . Intel | -11 -10 -10 -8 ------- Run | Yrd Mat Sub Mat Active Infowar (turns) 1570 | . 1316 . 254 Seismic 245 | . 245 . . ECM 1325 | . 1071 . 254 Robot Analysis Total . | . . . . Derelict Logs Recovered 2 | . . 2 . Drone Launches . | . . . . Drone Recoveries . | . . . . Exploration | -11 -10 -10 -8 ------------- Run | Yrd Mat Sub Mat Turns Passed 5134 | 133 2013 2734 254 Spaces Moved 2634 | 65 912 1558 99 Core 9 | 9 . . . Treads 2625 | 56 912 1558 99 Legs . | . . . . Wheels . | . . . . Hover . | . . . . Flight . | . . . . Fastest Speed 50 | 50 160 160 160 Average Speed 159 | 147 160 160 160 Slowest Speed 160 | 160 160 160 160 Overloaded Moves . | . . . . Propulsion Burnouts . | . . . . Robots Hopped . | . . . . Potential Cave-ins . | . . . . Cave-ins Triggered . | . . . . Exploration Rate (%) 52 | 6 99 94 11 Regions Visited 3 Branch Regions 1 Pre-discovered Areas 6 | . 5 1 . Known Exits Taken 1 | . 1 . . Unknown Exits Taken 2 | 1 . 1 . Scrap Searched 5 | . . 5 . Spaces Dug 1 | . . 1 . Terrain Destroyed 4 | . . 2 2 Melee . | . . . . Projectile 4 | . . 2 2 AOE . | . . . . Terrain Rammed . | . . . . Walls Destroyed . | . . . . Machines Disabled . | . . . . Actions | -11 -10 -10 -8 --------- Run | Yrd Mat Sub Mat Total 3354 | 88 1330 1755 181 Wait 481 | . 316 101 64 Move 2631 | 64 911 1557 99 Hop . | . . . . Pick Up 41 | 11 19 10 1 Fast Attach . | . . . . Attach 12 | 6 3 2 1 Detach . | . . . . Swap 11 | . 6 5 . Drop 27 | . 7 20 . Fire 140 | 7 68 49 16 Melee 1 | . . 1 . Ram . | . . . . Kick . | . . . . Crush . | . . . . Escape Stasis . | . . . . Rewire . | . . . . Trap . | . . . . Miscellaneous 10 | . . 10 . Route ------- -11/Scrapyard -10/Materials (discovered 6 exits: *Mat x3 / *Min x2 / *Sub) -10/Subcaves (discovered 2 exits: *Mat x2) -8/Materials History --------- Turn | Location | Event 7 | -11/Scrapyard | Discovered new exit (range 16) 134 | -11/Scrapyard | Entered Materials 303 | -10/Materials | Build established: Mutant 317 | -10/Materials | Discovered new exit (range 11) 842 | -10/Materials | Discovered new exit (range 15) 1009 | -10/Materials | Discovered new exit (range 6) 1175 | -10/Materials | Discovered new exit (range 6) 1340 | -10/Materials | Learned location of Storage (-7) 1413 | -10/Materials | Identified exit to Subcaves 1413 | -10/Materials | Identified exit to Materials 1468 | -10/Materials | Discovered exit to Materials (range 16) 1474 | -10/Materials | Identified exit to Mines 1526 | -10/Materials | Learned Storage stockpile data 1596 | -10/Materials | Learned Storage stockpile data 1636 | -10/Materials | Learned location of Recycling (-7) 1686 | -10/Materials | Learned location of Mines (-10) 2147 | -10/Materials | Entered Subcaves 2219 | -10/Subcaves | Core integrity fell below 50% 2288 | -10/Subcaves | Discovered new exit (range 9) 2492 | -10/Subcaves | Visited 4L-MR0's lab 2551 | -10/Subcaves | Found Powered Cannon 2554 | -10/Subcaves | Attached Powered Cannon, gained temporary slot: Power 2693 | -10/Subcaves | Shifting Twisted Machinery released Flamer 2753 | -10/Subcaves | Shifting Twisted Machinery released Sub. Power Source 2801 | -10/Subcaves | Shifting Twisted Machinery released Sub. Machine Gun 2826 | -10/Subcaves | Learned 2 Materials zone layouts 2980 | -10/Subcaves | Shifting Twisted Machinery released Scrap Shield 3034 | -10/Subcaves | A swath of the cavern ceiling suddenly collapsed 3099 | -10/Subcaves | A swath of the cavern ceiling suddenly collapsed 3908 | -10/Subcaves | Shifting Twisted Machinery released Sub. Machine Gun 3983 | -10/Subcaves | Discovered new exit (range 6) 4003 | -10/Subcaves | Ambushed by angry Subdweller bent on revenge 4160 | -10/Subcaves | Visited Clippyterm 4165 | -10/Subcaves | Learned location of Deep Caves (-6) 4396 | -10/Subcaves | Shifting Twisted Machinery released Hvy. Battle Rifle 4647 | -10/Subcaves | A Subdweller sparked back to life 4647 | -10/Subcaves | A Subdweller sparked back to life 4647 | -10/Subcaves | A Subdweller sparked back to life 4671 | -10/Subcaves | Found Power Bank 4881 | -10/Subcaves | Entered Materials 4881 | -8/Materials | Evolved 4 slots: Utility x4 5135 | -8/Materials | Self-destructed Last Messages --------------- 05059_ Connecting with Terminal... >>Trojan(Botnet) Trojan loaded successfully. Testing... Terminal linked with 1 system. Awaiting botnet instructions. >>Trojan(Skim) Trojan loaded successfully. Testing... Terminal linked with 1 system. Please expand to 3 more systems! 05060_ R-06 Scavenger collects Beam Rifle. 05061_ K-01 Serf collects debris. 05099_ W-25 Informer distress signal alerts nearby ally. 05112_ Y-45 Defender suffers critical hit (Meltdown). 05112_ Imp. Ion Engine melted. 05112_ Lgt. Treads melted. 05114_ W-25 Informer distress signal alerts nearby ally. 05125_ Destroyed Flight Unit. 05125_ S-10 Pest destroyed. Map ----- +----------------------------------------------------+ | | | | | | | | | | | | | | | | | | | | | | | ???????????????????????????????????????? | | ?????????????????????????###???????????? | | ????????????????????????? #???????????? | | ???????????? ???????????? #???????????? | | ???????????? ??????????? #???????????? | | ????????????? ?######??? #???????????? | | ??????????????/## #?? #?????????### | | ??????????????? #?? ########### | | ???????????????? +?? # # | | ?????????#####+## ??? # # | | ????????? ## #??? # # | | ?????????"" """ ## #??? # # | | ????????""" """ ## ####+### # | | ??????# """ """ ss [%* #?# # [ | | ??????# @## = #?# # [ | | ??????# ! #######%!#?# # [ | | ??????# #?????#! #?#####+####### | | ??????# ####### ##### ## | | ??????########### ## "" | | ????????????????# %= [ T + "" | | ????????????????# ###### ## "" | | ????????????????# #????####### "" | | ????????????????# #???########! | | ????????????????# ##### ###### | | ????????????????# #????? | | ????????????????# ??????????????? | | ????????????????# ??????????????? | | ????????????????# #"#??????????????? | | ????????????????## #?#???????????????? | | ?????????????????# ??????????????????? | | ?????????????????# ??????????????????? | | ?????????????????# ??????????????????? | | ?????????????????# ???????????????????? | | ?????????????????# ???????????????????? | | ??????????????????? ???????????????????? | | ???????????????????????????????????????? | | ???????????????????????????????????????? | | ???????????????????????????????????????? | | ???????????????????????????????????????? | +----------------------------------------------------+ Best States ------------- Heat Dissipation 31 Energy Generation 10 Energy Capacity 250 Matter Stores 300 Matter Capacity 300 Sight Range 16 Terrain Scan Density 10 ECM Strength 1 Armor Coverage 800 Resistance: KI 20 Resistance: TH 20 Resistance: EX 20 Resistance: EM 20 Resistance: I 20 Resistance: S 20 Resistance: P 20 Core Shielding 20 Evasion (%) 40 Recoil Reduction 2 Offensive Hacking 10 Item Schematics ----------------- None Robot Schematics ------------------ None Fabricated ------------ Nothing Repaired ---------- Nothing Alien Tech Used ----------------- None Achievements -------------- None Challenges ------------ None Game ------ Seed EncryptedMeleeChainsaw Manual? 0 Play Time 00:31:08 Cumulative 110.1 hours Start 2025.08.31 @ 13:50:42 End 2025.08.31 @ 14:25:34 Sessions 1 Manual Loads 0 Difficulty Adventurer Special Mode None Game No. 77 Rogue 0 Adventurer 77 Explorer 0 Win Type - Total 0 Types 0/0/0/0/0/0/0/0/0/0 Lore% 27 Gallery% 43 Achievement% 38 Wizard Run 0 Options --------- Layout 0 ASCII 0 Keyboard 0 Movement Mouse Keybinds 0 Fullscreen 1 Font 18/SmallcapsGlow Map View 76x50 Zoom Use 0% Tactical HUD 1 Map Filters NONE Filters NONE Steam 1 RUN: 8597035f-2b29-4790-9c7c-a14846055538